fUSD/lending_fUSD_20240606
["ID","MTS","AMOUNT","RATE_DAILY","PERIOD"]
[328641437,1717659044073,-151.0,0.00027,7]
[328641438,1717659044082,-151.0,0.00027,7]
[328641439,1717659044091,-1652.913549,0.00027,7]
[328641440,1717659044100,-1652.913549,0.00027,7]
[328641441,1717659044110,-151.578611,0.00027,7]
[328641442,1717659044119,-1004.642672,0.00027,7]
[328641443,1717659044129,-151.578611,0.00027,7]
[328641444,1717659044138,-1004.642672,0.00027,7]
[328641445,1717659044147,-151.0,0.00027,7]
[328641447,1717659044158,-151.0,0.00027,7]
[328641449,1717659044167,-151.0,0.00027,7]
[328641451,1717659044176,-279.778116,0.00027,7]
[328641452,1717659044186,-531.319097,0.00027,7]
[328641453,1717659044195,-279.778116,0.00027,7]
[328641454,1717659044204,-531.319097,0.00027,7]
[328641455,1717659044213,-213.17873,0.00027,7]
[328641456,1717659044223,-151.0,0.00027,7]
[328641457,1717659044232,-206.640717,0.00027,7]
[328641458,1717659044241,-206.640717,0.00027,7]
[328641459,1717659044250,-151.0,0.00027,7]
[328641460,1717659044260,-151.0,0.00027,7]
[328641461,1717659044268,-151.0,0.00027,7]
[328641462,1717659044278,-151.0,0.00027,7]
[328641463,1717659044287,-151.0,0.00027,7]
[328641464,1717659044296,-151.0,0.00027,7]
[328641465,1717659044305,-152.887669,0.00027,7]
[328641466,1717659044314,-152.887669,0.00027,7]
[328641467,1717659044323,-357.085294,0.00027,7]
[328641468,1717659044332,-151.0,0.00027,7]
[328641469,1717659044342,-357.085294,0.00027,7]
[328641470,1717659044351,-151.0,0.00027,7]
[328641471,1717659044360,-150.0,0.00027,2]
[328641472,1717659044369,-350.0,0.00027,7]
[328641473,1717659044378,-1523.119791,0.00027,7]
[328641474,1717659044387,-350.0,0.00027,7]
[328641475,1717659044396,-1523.119791,0.00027,7]
[328641476,1717659044405,-151.0,0.00027,7]
[328641477,1717659044414,-276.544958,0.00027,7]
[328641478,1717659044423,-152.943771,0.00027,7]
[328641479,1717659044432,-276.544958,0.00027,7]
[328641480,1717659044441,-151.0,0.00027,7]
[328641481,1717659044450,-151.0,0.00027,7]
[328641482,1717659044460,-151.0,0.00027,7]
[328641483,1717659044469,-151.0,0.00027,7]
[328641484,1717659044478,-151.0,0.00027,7]
[328641485,1717659044487,-302.076235,0.00027,7]
[328641486,1717659044497,-302.076235,0.00027,7]
[328641487,1717659044509,-151.0,0.00027,7]
[328641488,1717659044518,-999.620556,0.00027,7]
[328641489,1717659044527,-214.855669,0.00027,7]
[328641490,1717659044538,-999.620556,0.00027,7]
[328641491,1717659044547,-214.855669,0.00027,7]
[328641492,1717659044556,-178.253718,0.00027,7]
[328641493,1717659044565,-151.0,0.00027,7]
[328641494,1717659044574,-178.253718,0.00027,7]
[328641495,1717659044585,-151.0,0.00027,7]
[328641496,1717659044594,-308.55583,0.00027,7]
[328641497,1717659044604,-1753.57585,0.00027,7]
[328641498,1717659044614,-308.55583,0.00027,7]
[328641499,1717659044623,-1753.57585,0.00027,7]
[328641500,1717659044632,-151.0,0.00027,7]
[328641501,1717659044643,-189.935219,0.00027,7]
[328641502,1717659044652,-219.933493,0.00027,7]
[328641503,1717659044661,-189.935219,0.00027,7]
[328641504,1717659044673,-219.933493,0.00027,7]
[328641505,1717659044683,-159.857258,0.00027,7]
[328641506,1717659044692,-630.921759,0.00027,7]
[328641507,1717659044701,-151.0,0.00027,7]
[328641508,1717659044710,-630.921759,0.00027,7]
[328641509,1717659044720,-151.0,0.00027,7]
[328641510,1717659044730,-829.215337,0.00027,7]
[328641511,1717659044739,-829.215337,0.00027,7]
[328641512,1717659044749,-151.0,0.00027,7]
[328641513,1717659044761,-151.0,0.00027,7]
[328641514,1717659044771,-151.0,0.00027,7]
[328641515,1717659044781,-259.689758,0.00027,7]
[328641516,1717659044792,-677.573868,0.00027,7]
[328641517,1717659044802,-259.689758,0.00027,7]
[328641518,1717659044812,-677.573868,0.00027,7]
[328641519,1717659044821,-151.0,0.00027,7]
[328641520,1717659044830,-151.0,0.00027,7]
[328641521,1717659044841,-151.0,0.00027,7]
[328641522,1717659044850,-7607.699988,0.00027,7]
[328641523,1717659044860,-585.565116,0.00027,7]
[328641524,1717659044869,-585.565116,0.00027,7]
[328641525,1717659044879,-175.582608,0.00027,7]
[328641526,1717659044888,-7607.699988,0.00027,7]
[328641527,1717659044897,-151.0,0.00027,7]
[328641528,1717659044906,-175.582608,0.00027,7]
[328641529,1717659044915,-151.0,0.00027,7]
[328641530,1717659045016,-348.828489,0.00027,7]
[328641531,1717659045026,-151.0,0.00027,7]
[328641532,1717659045035,-348.828489,0.00027,7]
[328641533,1717659045045,-151.0,0.00027,7]
[328641534,1717659045054,-151.0,0.00027,7]
[328641535,1717659045063,-151.0,0.00027,7]
[328641536,1717659045073,-151.0,0.00027,7]
[328641537,1717659045083,-151.0,0.00027,7]
[328641538,1717659045092,-1015.520363,0.00027,7]
[328641539,1717659045101,-1015.520363,0.00027,7]
[328641540,1717659045111,-332.724879,0.00027,7]
[328641541,1717659045120,-332.724879,0.00027,7]
[328641542,1717659045129,-151.0,0.00027,7]
[328641543,1717659045138,-261.15557,0.00027,7]
[328641544,1717659045147,-151.0,0.00027,7]
[328641545,1717659045156,-151.0,0.00027,7]
[328641546,1717659045165,-261.15557,0.00027,7]
[328641547,1717659045175,-151.0,0.00027,7]
[328641548,1717659045184,-184.936114,0.00027,7]
[328641549,1717659045193,-1300.0,0.00027,2]
[328641550,1717659045202,-321.932562,0.00027,7]
[328641551,1717659045211,-398.509368,0.00027,7]
[328641552,1717659045221,-184.936114,0.00027,7]
[328641553,1717659045230,-321.932562,0.00027,7]
[328641554,1717659045239,-398.509368,0.00027,7]
[328641555,1717659045248,-280.162191,0.00027,7]
[328641556,1717659045258,-369.980668,0.00027,7]
[328641557,1717659045267,-280.162191,0.00027,7]
[328641558,1717659045277,-1348.0,0.00027014,2]
[328641559,1717659045286,-43983.0,0.00027014,2]
[328641560,1717659045295,-200.0,0.000271,2]
[328641561,1717659045305,-15444.56358067,0.00027173,2]
[328641562,1717659045314,-2010.9153131,0.000272,2]
[328641563,1717659045324,-4953.98,0.00027374,2]
[328641564,1717659045334,-805.18519156,0.0002739,2]
[328641565,1717659045343,-500.0,0.00027397,2]
[328641566,1717659045353,-500.0,0.00027397,2]
[328641567,1717659045363,-500.0,0.00027397,2]
[328641568,1717659045372,-500.0,0.00027397,2]
[328641569,1717659045383,-500.0,0.00027397,2]
[328641570,1717659045393,-500.0,0.00027397,2]
[328641571,1717659045403,-500.0,0.00027397,2]
[328641572,1717659045413,-500.0,0.00027397,2]
[328641573,1717659045423,-500.0,0.00027397,2]
[328641574,1717659045432,-500.0,0.00027397,2]
[328641575,1717659045443,-500.0,0.00027397,2]
[328641576,1717659045452,-500.0,0.00027397,2]
[328641577,1717659045461,-500.0,0.00027397,2]
[328641578,1717659045471,-500.0,0.00027397,2]
[328641579,1717659045481,-500.0,0.00027397,2]
[328641580,1717659045492,-281.46433144,0.00027397,2]
[328641581,1717659045501,-500.0,0.00027397,2]
[328641582,1717659045512,-500.0,0.00027397,2]
[328641583,1717659045521,-500.0,0.00027397,2]
[328641584,1717659045531,-500.0,0.00027397,2]
[328641585,1717659045541,-500.0,0.00027397,2]
[328641586,1717659045550,-150.0,0.00027397,2]
[328641587,1717659045560,-151.0,0.00027397,7]
[328641588,1717659045570,-151.0,0.00027397,7]
[328641589,1717659045580,-151.0,0.00027397,7]
[328641590,1717659045589,-151.0,0.00027397,7]
[328641591,1717659045598,-151.0,0.00027397,7]
[328641592,1717659045608,-151.0,0.00027397,7]
[328641593,1717659045617,-151.0,0.00027397,7]
[328641594,1717659045627,-151.0,0.00027397,7]
[328641595,1717659045637,-151.0,0.00027397,7]
[328641596,1717659045646,-151.0,0.00027397,7]
[328641597,1717659045656,-151.0,0.00027397,7]
[328641598,1717659045665,-202.905709,0.00027397,7]
[328641599,1717659045675,-202.905709,0.00027397,7]
[328641600,1717659045685,-202.905709,0.00027397,7]
[328641601,1717659045695,-202.905709,0.00027397,7]
[328641602,1717659045704,-202.905709,0.00027397,7]
[328641603,1717659045715,-202.905709,0.00027397,7]
[328641604,1717659045724,-202.905709,0.00027397,7]
[328641605,1717659045735,-202.905709,0.00027397,7]
[328641606,1717659045745,-173.87,0.00027397,2]
[328641607,1717659045756,-9620.05,0.00027397,2]
[328641608,1717659045770,-495.99,0.000274,2]
[328641609,1717659045780,-495.99,0.000274,2]
[328641610,1717659045789,-495.99,0.000274,2]
[328641611,1717659045799,-495.99,0.000274,2]
[328641612,1717659045810,-495.99,0.000274,2]
[328641613,1717659045820,-152.0,0.00027428,3]
[328641614,1717659045830,-205.0,0.0002746,2]
[328641615,1717659045841,-200.0,0.0002746,2]
[328641616,1717659045851,-150.0,0.00027534,2]
[328641617,1717659045860,-1643.47903912,0.00027605,2]
[328641618,1717659045870,-150.0,0.00027671,2]
[328641619,1717659045879,-175.594231,0.0002768,2]
[328641620,1717659045889,-213.731204,0.0002768,2]
[328641621,1717659045899,-408.211011,0.0002768,2]
[328641622,1717659045908,-182.893283,0.0002768,2]
[328641623,1717659045918,-5959.538194,0.0002768,2]
[328641624,1717659045928,-180.351856,0.0002768,2]
[328641625,1717659045937,-286.230045,0.0002768,2]
[328641626,1717659045946,-7863.350006,0.0002768,2]
[328641627,1717659045955,-6328.538745,0.0002768,2]
[328641628,1717659045964,-2848.446933,0.0002768,2]
[328641629,1717659045974,-161.564665,0.0002768,2]
[328641630,1717659045984,-1336.402371,0.0002768,2]
[328641631,1717659045993,-175.859741,0.0002768,2]
[328641632,1717659046003,-186.101953,0.0002768,2]
[328641633,1717659046013,-171.375121,0.0002768,2]
[328641634,1717659046022,-205.622319,0.0002768,2]
[328641635,1717659046031,-180.851125,0.0002768,2]
[328641636,1717659046041,-2958.598106,0.0002768,2]
[328641637,1717659046051,-202.294036,0.0002768,2]
[328641638,1717659046060,-160.988648,0.0002768,2]
[328641639,1717659046069,-198.60423,0.0002768,2]
[328641640,1717659046078,-8996.011854,0.0002768,2]
[328641641,1717659046087,-169.69538,0.0002768,2]
[328641642,1717659046097,-13085.340597,0.0002768,2]
[328641643,1717659046106,-1858.513787,0.0002768,2]
[328641644,1717659046115,-14323.02643879,0.00027712,2]
[328641645,1717659046125,-839.85,0.000278,2]
[328641646,1717659046134,-150.0,0.00027808,2]
[328641647,1717659046143,-1374.38,0.000279,10]
[328641648,1717659046152,-2977.43967242,0.00027917,2]
[328641649,1717659046161,-151.0,0.00027919,7]
[328641650,1717659046171,-150.0,0.00027945,2]
[328641651,1717659046180,-20000.0,0.00028,4]
[328641652,1717659046189,-1000.0,0.00028,5]
[328641653,1717659046199,-3343.31724959,0.00028,2]
[328641654,1717659046208,-233.0,0.00028,2]
[328641655,1717659046218,-24255.07361649,0.00028,2]
[328641656,1717659046227,-485.10147233,0.00028,2]
[328641657,1717659046237,-3194.0,0.00028,4]
[328641658,1717659046246,-578.0,0.00028,4]
[328641659,1717659046255,-151.40169,0.00028,7]
[328641660,1717659046265,-280.162191,0.00028,7]
[328641661,1717659046274,-150.0,0.00028,2]
[328641662,1717659046283,-213.731204,0.00028026,2]
[328641663,1717659046292,-408.211011,0.00028026,2]
[328641664,1717659046302,-5959.538194,0.00028026,2]
[328641665,1717659046311,-286.230045,0.00028026,2]
[328641666,1717659046320,-7863.350006,0.00028026,2]
[328641667,1717659046329,-6328.538745,0.00028026,2]
[328641668,1717659046339,-2848.446933,0.00028026,2]
[328641669,1717659046348,-1336.402371,0.00028026,2]
[328641670,1717659046357,-2958.598106,0.00028026,2]
[328641671,1717659046366,-198.60423,0.00028026,2]
[328641672,1717659046375,-8996.011854,0.00028026,2]
[328641673,1717659046384,-13085.340597,0.00028026,2]
[328641674,1717659046393,-1858.513787,0.00028026,2]
[328641675,1717659046403,-151.0,0.00028026,7]
[328641676,1717659046411,-206.640717,0.00028026,7]
[328641677,1717659046420,-206.640717,0.00028026,7]
[328641678,1717659046430,-151.0,0.00028026,7]
[328641679,1717659046439,-243.668431,0.00028026,7]
[328641680,1717659046447,-151.0,0.00028026,7]
[328641681,1717659046457,-151.0,0.00028026,7]
[328641682,1717659046466,-357.085294,0.00028026,7]
[328641683,1717659046475,-151.0,0.00028026,7]
[328641684,1717659046484,-357.085294,0.00028026,7]
[328641685,1717659046494,-151.0,0.00028026,7]
[328641686,1717659046504,-350.0,0.00028026,7]
[328641687,1717659046513,-1523.119791,0.00028026,7]
[328641688,1717659046522,-350.0,0.00028026,7]
[328641689,1717659046531,-1523.119791,0.00028026,7]
[328641690,1717659046540,-151.0,0.00028026,7]
[328641691,1717659046549,-276.544958,0.00028026,7]
[328641692,1717659046557,-276.544958,0.00028026,7]
[328641693,1717659046567,-151.0,0.00028026,7]
[328641694,1717659046576,-151.0,0.00028026,7]
[328641695,1717659046586,-151.0,0.00028026,7]
[328641696,1717659046595,-151.0,0.00028026,7]
[328641697,1717659046605,-151.0,0.00028026,7]
[328641698,1717659046614,-302.076235,0.00028026,7]
[328641699,1717659046623,-302.076235,0.00028026,7]
[328641700,1717659046632,-151.0,0.00028026,7]
[328641701,1717659046641,-999.620556,0.00028026,7]
[328641702,1717659046650,-214.855669,0.00028026,7]
[328641703,1717659046659,-999.620556,0.00028026,7]
[328641704,1717659046668,-214.855669,0.00028026,7]
[328641705,1717659046768,-178.253718,0.00028026,7]
[328641706,1717659046778,-151.0,0.00028026,7]
[328641707,1717659046788,-178.253718,0.00028026,7]
[328641708,1717659046797,-151.0,0.00028026,7]
[328641709,1717659046806,-308.55583,0.00028026,7]
[328641711,1717659046815,-1753.57585,0.00028026,7]
[328641713,1717659046824,-308.55583,0.00028026,7]
[328641715,1717659046833,-1753.57585,0.00028026,7]
[328641717,1717659046844,-151.0,0.00028026,7]
[328641719,1717659046854,-189.935219,0.00028026,7]
[328641721,1717659046863,-219.933493,0.00028026,7]
[328641723,1717659046873,-189.935219,0.00028026,7]
[328641725,1717659046883,-219.933493,0.00028026,7]
[328641727,1717659046892,-630.921759,0.00028026,7]
[328641729,1717659046901,-151.0,0.00028026,7]
[328641731,1717659046910,-630.921759,0.00028026,7]
[328641734,1717659046920,-151.0,0.00028026,7]
[328641735,1717659046929,-829.215337,0.00028026,7]
[328641738,1717659046939,-829.215337,0.00028026,7]
[328641739,1717659046948,-151.0,0.00028026,7]
[328641741,1717659046957,-151.0,0.00028026,7]
[328641744,1717659046967,-259.689758,0.00028026,7]
[328641746,1717659046976,-151.0,0.00028026,7]
[328641748,1717659046986,-677.573868,0.00028026,7]
[328641749,1717659046995,-259.689758,0.00028026,7]
[328641752,1717659047004,-677.573868,0.00028026,7]
[328641754,1717659047013,-151.0,0.00028026,7]
[328641755,1717659047023,-151.0,0.00028026,7]
[328641758,1717659047032,-151.0,0.00028026,7]
[328641760,1717659047041,-7607.699988,0.00028026,7]
[328641761,1717659047051,-585.565116,0.00028026,7]
[328641764,1717659047060,-585.565116,0.00028026,7]
[328641765,1717659047070,-175.582608,0.00028026,7]
[328641768,1717659047079,-7607.699988,0.00028026,7]
[328641770,1717659047088,-151.0,0.00028026,7]
[328641771,1717659047097,-175.582608,0.00028026,7]
[328641774,1717659047106,-151.0,0.00028026,7]
[328641776,1717659047116,-348.828489,0.00028026,7]
[328641778,1717659047125,-151.0,0.00028026,7]
[328641780,1717659047134,-348.828489,0.00028026,7]
[328641782,1717659047143,-151.0,0.00028026,7]
[328641784,1717659047153,-151.0,0.00028026,7]
[328641786,1717659047162,-151.0,0.00028026,7]
[328641788,1717659047171,-151.0,0.00028026,7]
[328641789,1717659047180,-151.0,0.00028026,7]
[328641790,1717659047189,-1015.520363,0.00028026,7]
[328641791,1717659047198,-1015.520363,0.00028026,7]
[328641792,1717659047207,-332.724879,0.00028026,7]
[328641793,1717659047216,-332.724879,0.00028026,7]
[328641794,1717659047225,-151.0,0.00028026,7]
[328641795,1717659047234,-261.15557,0.00028026,7]
[328641796,1717659047243,-157.351205,0.00028026,7]
[328641797,1717659047252,-151.0,0.00028026,7]
[328641798,1717659047261,-261.15557,0.00028026,7]
[328641799,1717659047269,-151.0,0.00028026,7]
[328641800,1717659047278,-184.936114,0.00028026,7]
[328641802,1717659047287,-321.932562,0.00028026,7]
[328641804,1717659047299,-398.509368,0.00028026,7]
[328641806,1717659047308,-184.936114,0.00028026,7]
[328641808,1717659047317,-321.932562,0.00028026,7]
[328641810,1717659047326,-398.509368,0.00028026,7]
[328641812,1717659047335,-205.0,0.0002808,2]
[328641814,1717659047344,-200.0,0.0002808,2]
[328641815,1717659047353,-15444.56358067,0.00028082,2]
[328641818,1717659047362,-286.04983606,0.00028082,2]
[328641820,1717659047372,-151.0,0.0002811,7]
[328641821,1717659047382,-151.0,0.0002811,7]
[328641823,1717659047391,-151.0,0.0002811,7]
[328641825,1717659047400,-151.0,0.0002811,7]
[328641827,1717659047410,-202.905709,0.0002811,7]
[328641830,1717659047420,-202.905709,0.0002811,7]
[328641832,1717659047429,-152.887669,0.0002811,7]
[328641833,1717659047439,-152.887669,0.0002811,7]
[328641835,1717659047448,-433.64,0.00028203,2]
[328641837,1717659047457,-1099.73,0.00028203,2]
[328641840,1717659047467,-4085.10822516,0.00028272,2]
[328641842,1717659047476,-153.91,0.00028356,2]
[328641844,1717659047485,-182.893283,0.00028372,2]
[328641845,1717659047494,-213.731204,0.00028372,2]
[328641847,1717659047504,-5959.538194,0.00028372,2]
[328641849,1717659047513,-408.211011,0.00028372,2]
[328641851,1717659047522,-180.351856,0.00028372,2]
[328641853,1717659047531,-286.230045,0.00028372,2]
[328641856,1717659047541,-7863.350006,0.00028372,2]
[328641857,1717659047551,-6328.538745,0.00028372,2]
[328641859,1717659047560,-2848.446933,0.00028372,2]
[328641861,1717659047570,-161.564665,0.00028372,2]
[328641864,1717659047580,-1336.402371,0.00028372,2]
[328641865,1717659047589,-2958.598106,0.00028372,2]
[328641868,1717659047600,-198.60423,0.00028372,2]
[328641869,1717659047610,-8996.011854,0.00028372,2]
[328641872,1717659047620,-13085.340597,0.00028372,2]
[328641874,1717659047629,-1858.513787,0.00028372,2]
[328641876,1717659047639,-151.0,0.00028372,7]
[328641878,1717659047648,-151.0,0.00028372,7]
[328641879,1717659047657,-151.0,0.00028372,7]
[328641881,1717659047666,-151.0,0.00028372,7]
[328641884,1717659047677,-151.0,0.00028372,7]
[328641886,1717659047686,-270.379917,0.00028372,7]
[328641887,1717659047695,-270.379917,0.00028372,7]
[328641889,1717659047705,-151.0,0.00028372,7]
[328641892,1717659047715,-1219.82916,0.00028372,7]
[328641893,1717659047724,-151.0,0.00028372,7]
[328641895,1717659047733,-207.79448,0.00028372,7]
[328641898,1717659047742,-1219.82916,0.00028372,7]
[328641900,1717659047752,-499.3199,0.00028372,7]
[328641901,1717659047764,-207.79448,0.00028372,7]
[328641903,1717659047773,-499.3199,0.00028372,7]
[328641905,1717659047782,-151.0,0.00028372,7]
[328641907,1717659047792,-151.0,0.00028372,7]
[328641910,1717659047802,-151.0,0.00028372,7]
[328641912,1717659047812,-151.0,0.00028372,7]
[328641913,1717659047821,-151.0,0.00028372,7]
[328641915,1717659047830,-823.497835,0.00028372,7]
[328641917,1717659047841,-151.0,0.00028372,7]
[328641919,1717659047850,-151.0,0.00028372,7]
[328641921,1717659047860,-758.230552,0.00028372,7]
[328641923,1717659047869,-758.230552,0.00028372,7]
[328641925,1717659047880,-151.0,0.00028372,7]
[328641927,1717659047889,-151.0,0.00028372,7]
[328641929,1717659047898,-1652.913549,0.00028372,7]
[328641931,1717659047907,-1652.913549,0.00028372,7]
[328641933,1717659047916,-151.578611,0.00028372,7]
[328641935,1717659047926,-1004.642672,0.00028372,7]
[328641937,1717659047936,-151.578611,0.00028372,7]
[328641939,1717659047946,-1004.642672,0.00028372,7]
[328641941,1717659047955,-151.0,0.00028372,7]
[328641943,1717659047964,-151.0,0.00028372,7]
[328641945,1717659047974,-280.951363,0.00028372,7]
[328641948,1717659047983,-279.778116,0.00028372,7]
[328641950,1717659047993,-531.319097,0.00028372,7]
[328641952,1717659048003,-279.778116,0.00028372,7]
[328641954,1717659048012,-531.319097,0.00028372,7]
[328641956,1717659048022,-151.0,0.000284,16]
[328641957,1717659048031,-151.0,0.00028445,7]
[328641959,1717659048039,-151.0,0.00028445,7]
[328641960,1717659048050,-151.0,0.00028445,7]
[328641961,1717659048059,-151.0,0.00028445,7]
[328641962,1717659048068,-20000.0,0.000285,4]
[328641963,1717659048077,-151.0,0.000285,7]
[328641964,1717659048087,-151.0,0.000285,7]
[328641965,1717659048096,-151.0,0.000285,7]
[328641966,1717659048106,-170.804632,0.000285,7]
[328641967,1717659048115,-156.84881,0.000285,7]
[328641968,1717659048124,-156.84881,0.000285,7]
[328641969,1717659048133,-939.07,0.000285,2]
[328641970,1717659048144,-151.0,0.000285,7]
[328641971,1717659048153,-151.0,0.000285,7]
[328641972,1717659048163,-151.0,0.000285,7]
[328641973,1717659048172,-839.85,0.000285,2]
[328641974,1717659048182,-1044.48,0.00028523,2]
[328641975,1717659048192,-205.0,0.000287,2]
[328641976,1717659048203,-200.0,0.000287,2]
[328641977,1717659048212,-213.731204,0.00028718,2]
[328641978,1717659048222,-5959.538194,0.00028718,2]
[328641979,1717659048232,-408.211011,0.00028718,2]
[328641980,1717659048242,-286.230045,0.00028718,2]
[328641981,1717659048253,-7863.350006,0.00028718,2]
[328641982,1717659048263,-6328.538745,0.00028718,2]
[328641983,1717659048275,-2848.446933,0.00028718,2]
[328641984,1717659048284,-1336.402371,0.00028718,2]
[328641985,1717659048382,-2958.598106,0.00028718,2]
[328641986,1717659048393,-198.60423,0.00028718,2]
[328641987,1717659048402,-8996.011854,0.00028718,2]
[328641988,1717659048413,-13085.340597,0.00028718,2]
[328641989,1717659048423,-1858.513787,0.00028718,2]
[328641990,1717659048432,-151.0,0.00028734,2]
[328641991,1717659048442,-4436.0,0.0002887,15]
[328641992,1717659048452,-4436.0,0.0002888,15]
[328641993,1717659048461,-156.15678294,0.00028888,4]
[328641994,1717659048471,-4436.0,0.0002889,15]
[328641995,1717659048480,-151.0,0.00028892,7]
[328641996,1717659048489,-151.0,0.00028892,7]
[328641997,1717659048499,-151.0,0.00028892,7]
[328641998,1717659048510,-151.0,0.00028892,7]
[328641999,1717659048519,-202.905709,0.00028892,7]
[328642000,1717659048528,-202.905709,0.00028892,7]
[328642001,1717659048538,-151.0,0.00028892,7]
[328642002,1717659048548,-151.0,0.00028892,7]
[328642003,1717659048557,-151.0,0.00028892,7]
[328642004,1717659048567,-152.887669,0.00028892,7]
[328642005,1717659048576,-152.887669,0.00028892,7]
[328642006,1717659048586,-828.440947,0.00028892,7]
[328642007,1717659048596,-357.085294,0.00028892,7]
[328642008,1717659048605,-151.0,0.00028892,7]
[328642009,1717659048614,-357.085294,0.00028892,7]
[328642010,1717659048623,-239.436187,0.00028892,7]
[328642011,1717659048633,-350.0,0.00028892,7]
[328642012,1717659048643,-1523.119791,0.00028892,7]
[328642013,1717659048652,-350.0,0.00028892,7]
[328642014,1717659048661,-1523.119791,0.00028892,7]
[328642015,1717659048671,-151.0,0.00028892,7]
[328642016,1717659048681,-276.544958,0.00028892,7]
[328642017,1717659048691,-276.544958,0.00028892,7]
[328642018,1717659048700,-151.0,0.00028892,7]
[328642019,1717659048710,-151.0,0.00028892,7]
[328642020,1717659048720,-151.0,0.00028892,7]
[328642021,1717659048730,-151.0,0.00028892,7]
[328642022,1717659048739,-151.0,0.00028892,7]
[328642023,1717659048748,-302.076235,0.00028892,7]
[328642024,1717659048760,-302.076235,0.00028892,7]
[328642025,1717659048771,-239.731843,0.00028892,7]
[328642026,1717659048780,-999.620556,0.00028892,7]
[328642027,1717659048789,-214.855669,0.00028892,7]
[328642028,1717659048799,-999.620556,0.00028892,7]
[328642029,1717659048811,-214.855669,0.00028892,7]
[328642030,1717659048822,-178.253718,0.00028892,7]
[328642031,1717659048835,-151.0,0.00028892,7]
[328642032,1717659048845,-178.253718,0.00028892,7]
[328642033,1717659048855,-151.0,0.00028892,7]
[328642034,1717659048865,-308.55583,0.00028892,7]
[328642035,1717659048874,-1753.57585,0.00028892,7]
[328642036,1717659048884,-308.55583,0.00028892,7]
[328642037,1717659048893,-1753.57585,0.00028892,7]
[328642038,1717659048903,-151.0,0.00028892,7]
[328642039,1717659048913,-189.935219,0.00028892,7]
[328642040,1717659048922,-219.933493,0.00028892,7]
[328642041,1717659048932,-189.935219,0.00028892,7]
[328642042,1717659048942,-219.933493,0.00028892,7]
[328642043,1717659048952,-630.921759,0.00028892,7]
[328642044,1717659048962,-151.0,0.00028892,7]
[328642045,1717659048972,-630.921759,0.00028892,7]
[328642046,1717659048981,-246.932124,0.00028892,7]
[328642047,1717659048991,-829.215337,0.00028892,7]
[328642048,1717659049000,-829.215337,0.00028892,7]
[328642049,1717659049010,-151.0,0.00028892,7]
[328642050,1717659049020,-157.237852,0.00028892,7]
[328642051,1717659049030,-259.689758,0.00028892,7]
[328642052,1717659049039,-151.0,0.00028892,7]
[328642053,1717659049049,-677.573868,0.00028892,7]
[328642054,1717659049059,-259.689758,0.00028892,7]
[328642055,1717659049069,-677.573868,0.00028892,7]
[328642056,1717659049079,-151.0,0.00028892,7]
[328642057,1717659049088,-151.0,0.00028892,7]
[328642058,1717659049098,-195.689913,0.00028892,7]